Cogmind - Beta 16 @@@ ROGUE MODE // 2025.12.16 @ 14:51:54 Player: AngelSpirit Result: Destroyed by I7-6FB(R) with Subdweller Machine Gun Performance ------------- Evolutions (0) 0 Regions Visited (2) 400 Robots Destroyed (38) 190 Value Destroyed (1094) 1094 Prototype IDs (12) 240 Alien Tech Used (0) 0 Bonus (0) 0 TOTAL SCORE: 1924 Bonus ------- None Cogmind --------- Core Integrity 0/250 Matter 265/300 Energy 162/170 System Corruption 0% Temperature Warm (140) Movement Rolling (95) Ox1 Location -10/Subcaves Parts ------- > --- POWER (1) -------- Makeshift Power Source > --- PROPULSION (2) --- Wheel Wheel > --- UTILITY (2) ------ Large Storage Unit Light Armor Plating > --- WEAPON (2) ------- Subdweller Laser Subdweller Beam Cannon > --- INVENTORY (15) --- Makeshift Power Source Cargo Legs Wheel Wheel Subdweller Monowheel High-capacity Matter Pod (200) Sensor Array Light Armor Plating Makeshift Thermal Plating Riot Gun Riot Gun Slug Cannon Peak State ------------ > --- POWER ------------ Makeshift Power Source > --- PROPULSION ------- Wheel Subdweller Monowheel > --- UTILITY ---------- Large Storage Unit Sensor Array > --- WEAPON ----------- Riot Gun Barrage Gun > --- INVENTORY -------- Ion Engine Ion Engine Cargo Legs Wheel Wheel Wheel Subdweller Monowheel Subdweller Monowheel High-capacity Matter Pod Light Armor Plating Light Armor Plating Makeshift Thermal Plating Subdweller Laser Subdweller Laser [Rating: 18] Favorites ----------- Power Ion Engine Engine Ion Engine Propulsion Wheel Wheel Wheel Utility Large Storage Unit Device Sensor Array Storage Large Storage Unit Protection Light Armor Plating Weapon Subdweller Laser Energy Gun Subdweller Laser Energy Cannon Subdweller Beam Cannon Ballistic Gun Light Assault Rifle Ballistic Cannon Light Cannon Launcher Grenade Launcher Build | -11 -10 -10 ------- Run | Yrd Mat Sub Slots Evolved . | . . . Power . | . . . Propulsion . | . . . Utility . | . . . Weapon . | . . . Parts Attached 44 | 6 14 24 Power 6 | 1 . 5 Engine 6 | 1 . 5 Core . | . . . Reactor . | . . . Propulsion 12 | 2 3 7 Treads . | . . . Leg . | . . . Wheel 12 | 2 3 7 Hover . | . . . Flight . | . . . Utility 6 | 1 4 1 Device 1 | . . 1 Storage 2 | 1 1 . Processor . | . . . Hackware . | . . . Protection 3 | . 3 . Artifact . | . . . Weapon 20 | 2 7 11 Energy Gun 9 | . 4 5 Energy Cannon 2 | . . 2 Ballistic Gun 5 | 2 . 3 Ballistic Cannon 2 | . 1 1 Launcher 2 | . 2 . Special Weapon . | . . . Impact Weapon . | . . . Slashing Weapon . | . . . Piercing Weapon . | . . . Special Melee Weapon . | . . . Unidentified Prototypes . | . . . Parts Lost 7 | . 1 6 Power 1 | . . 1 Propulsion 2 | . 1 1 Utility . | . . . Weapon 4 | . . 4 Highest Loss Streak 2 | . 1 2 To Critical Strikes . | . . . Average Backups 12 | . 8 13 Power 1 | . 1 2 Propulsion 3 | . 1 4 Utility 3 | . 1 4 Weapon 2 | . 3 2 Tool/Special . | . . . Unused Backups 22 | . 4 18 Power 5 | . 1 4 Propulsion 5 | . . 5 Utility 6 | . 1 5 Weapon 6 | . 2 4 Tool/Special . | . . . Average Slot Usage (%) 98 | . 95 99 Engine 14 | . 14 14 Wheel 27 | . 26 27 Device 7 | . . 11 Storage 14 | . 14 14 Protection 5 | . 11 2 Energy Gun 12 | . 18 10 Energy Cannon 3 | . . 4 Ballistic Gun 4 | . 5 4 Ballistic Cannon 5 | . . 7 Launcher 1 | . 4 . Peak Build Rating 18 | 6 8 18 Average Rating 11 | 4 7 12 On Entrance 4 | . 6 8 Avg Prop Armor Cover (%) . | . . . Naked Turns . | . . . Heaviest Build 40 | 12 34 40 Greatest Support 30 | 20 20 30 Greatest Overweight (x) 3 | . 1 3 Average Overweight (x) . | . . . Largest Inventory Capacity 15 | 8 15 15 Average Capacity 13 | 7 11 15 Most Carried 15 | . 15 15 Average Carried 12 | . 8 14 Final Capacity 15 | 8 15 15 Final Carried 15 | . 15 13 Class Distribution -------------------- 66% | Mutant 33% | Scavenger-Mutant Dominant Class ---------------- Mutant | -10/Materials Mutant | -10/Subcaves Resources | -11 -10 -10 ----------- Run | Yrd Mat Sub Matter Collected 1547 | 260 697 590 Remotely . | . . . Salvage Created 1096 | . 619 477 Parts 85 | . 45 40 Haulers Intercepted 2 | . 2 . Recyclers Shooed . | . . . Parts Field Recycled . | . . . Retrieved Matter . | . . . Parts Self-Destructed 6 | . . 6 Prevented . | . . . Parts Restored . | . . . Kills | -11 -10 -10 ------- Run | Yrd Mat Sub Combat Hostiles Destroyed 26 | . 12 14 Guns 8 | . 2 6 Cannons 5 | . . 5 AOE 13 | . 10 3 Classes Destroyed 10 | . 7 3 Worker 3 | . 3 . Builder 1 | . 1 . Tunneler 1 | . 1 . Hauler 2 | . 2 . Operator 2 | . 2 . Watcher 3 | . 3 . Swarmer 3 | . . 3 Grunt 12 | . 12 . Sentry 1 | . . 1 Subdweller 10 | . . 10 Best Kill Streak 7 | . 7 3 Combat Bots Only 4 | . 4 3 Max Kills in Single Turn 3 | . 3 3 Gunslinging . | . . . Exploded 3 | . 2 3 Melee . | . . . Uniques/NPCs Destroyed . | . . . Combat | -11 -10 -10 -------- Run | Yrd Mat Sub Hostile Shots Fired 87 | . 41 46 Missed 27 | . 17 10 Hits 60 | . 24 36 Projectile 60 | . 24 36 Critical Strikes 1 | . . 1 Damage Taken 1329 | . 397 932 Core 256 | . 53 203 Absorbed by Shields . | . . . Core Remaining (%) 100 | 100 . . Volleys Fired 114 | . 49 65 Largest 2 | . 2 2 Hottest 140 | . 80 140 Shots Fired 194 | . 95 99 Gun 139 | . 76 63 Cannon 35 | . . 35 Launcher 20 | . 19 1 Special . | . . . Kinetic 82 | . 50 32 Thermal 66 | . . 66 Explosive 20 | . 19 1 Electromagnetic 26 | . 26 . Robot Hit Streak 21 | . 10 21 Robot Miss Streak 3 | . 3 2 Penetration Max . | . . . Secondary Targets . | . . . Shots Hit Robots 102 | . 49 53 Core Hits 65 | . 42 23 Critical Kills 2 | . 1 1 Critical Parts Destroyed . | . . . Critical Strikes 2 | . 1 1 Destroy 2 | . 1 1 Melee Attacks . | . . . Impact . | . . . Slashing . | . . . Piercing . | . . . Sneak Attacks . | . . . Combat Hostiles . | . . . Follow-up Attacks . | . . . Damage Inflicted 2561 | . 1337 1224 Guns 1096 | . 450 646 Cannons 430 | . . 430 Explosions 1035 | . 887 148 Melee . | . . . Ramming . | . . . Kinetic 517 | . 191 326 Thermal 821 | . 71 750 Explosive 912 | . 764 148 Electromagnetic 311 | . 311 . Impact . | . . . Slashing . | . . . Piercing . | . . . Highest Corruption . | . . . Average Corruption . | . . . Corruption Purged . | . . . Corruption Blocked . | . . . Overload Shots . | . . . Overflow Damage 24 | . 19 5 Projectiles . | . . . Explosions 24 | . 19 5 Melee . | . . . Knockbacks 3 | . . 3 Impact . | . . . Kinetic 3 | . . 3 Secondary . | . . . Self-Inflicted Damage 107 | . 86 21 Shots 5 | . 4 1 Rammed . | . . . Targets Rammed . | . . . Kicked . | . . . Crushed . | . . . Highest Temperature 140 | . 111 140 Average Temperature 28 | . 23 43 Received Heat Transfer 255 | . 162 93 Siege Activations . | . . . Martial Activations . | . . . Shielding Activations . | . . . Robots Disrupted . | . . . Combat Hostiles . | . . . Robots Corrupted . | . . . Combat Hostiles . | . . . Parts Fried 1 | . 1 . Impact Corruptions . | . . . Robots Melted . | . . . Combat Hostiles . | . . . Parts Melted . | . . . Heat Transferred 1034 | . 100 934 Parts Sabotaged . | . . . Parts Stolen . | . . . Parts Stripped . | . . . Power Chain Reactions 2 | . 2 . Alert | -11 -10 -10 ------- Run | Yrd Mat Sub Maximum Alert Level 1 | . 1 . Low Security (%) 50 | 100 48 . Level 1 49 | . 51 . Level 2 . | . . . Level 3 . | . . . Level 4 . | . . . Level 5 . | . . . High Security . | . . . Max Security . | . . . Peak Influence 326 | . 326 . Initial . | . . . Average 184 | . 191 . Influence Increases 862 | . 692 170 Destroy 0b10 Robot/C 320 | . 240 80 Destroy 0b10 Robot/NC 60 | . 60 . Destroy Leader 60 | . 60 . Successful Hack 19 | . 19 . Disable Machine 90 | . 90 . Destroy Structure 103 | . 103 . Partial Spotted 15 | . 15 . Lose Combat Pursuer 195 | . 105 90 Influence Decreases 862 | . 383 479 Entered New Map 149 | . . 149 Time Decay 663 | . 373 290 Lost Part 50 | . 10 40 Squads Dispatched 1 | . 1 . Investigation . | . . . Extermination . | . . . Reinforcement 1 | . 1 . Assault . | . . . Garrison . | . . . Intercept . | . . . Searches Triggered . | . . . Construction Impeded . | . . . Haulers Reinforced . | . . . Active Scanning Responses . | . . . Cargo Convoy Interrupts . | . . . Stealth | -11 -10 -10 --------- Run | Yrd Mat Sub Distress Signals 2 | . 2 . Communications Jammed . | . . . Distress Signals . | . . . Times Spotted 39 | . 22 17 Peak Tracking Total 6 | . 6 5 Tactical Retreats 5 | . 3 2 Traps | -11 -10 -10 ------- Run | Yrd Mat Sub Traps Triggered 6 | . 1 5 Indirectly . | . . . Trap Hack Attempts . | . . . Triggered . | . . . Disarmed . | . . . Reprogrammed . | . . . Reused . | . . . Traps Extracted . | . . . Installed 1 | . . 1 Triggered . | . . . Machines | -11 -10 -10 ---------- Run | Yrd Mat Sub Machines Disabled 7 | . 6 1 Max in Single Turn 3 | . 3 1 Machines Repaired . | . . . Machines Dismantled . | . . . Machines Sabotaged . | . . . Overloaded Fab Kills . | . . . Hacking | -11 -10 -10 --------- Run | Yrd Mat Sub Machines Accessed 8 | . 7 1 Terminals 6 | . 6 . Fabricators . | . . . Repair Stations . | . . . Recycling Units 1 | . 1 . Scanalyzers . | . . . Garrison Access . | . . . Total Hacks 19 | . 18 1 Successful 7 | . 6 1 Failed 11 | . 11 . Catastrophic 1 | . 1 . Database Lockouts 1 | . 1 . Manual 10 | . 10 . Terminals 17 | . 17 . Fabricators . | . . . Repair Stations . | . . . Recycling Units 1 | . 1 . Scanalyzers . | . . . Garrison Access . | . . . Terminal Hacks 4 | . 3 1 Part Schematic 1 | . 1 . Robot Analysis 1 | . 1 . Registered Components 1 | . 1 . Proto ID Catalog 1 | . . 1 Fabricator Hacks . | . . . Repair Station Hacks . | . . . Recycling Unit Hacks 1 | . 1 . Retrieve Components 1 | . 1 . Scanalyzer . | . . . Garrison Access Hacks . | . . . Unauthorized Hacks 2 | . 2 . Terminals 2 | . 2 . Botnet 2 | . 2 . Fabricators . | . . . Repair Stations . | . . . Recycling Units . | . . . Scanalyzers . | . . . Garrison Access . | . . . Data Cores Recovered . | . . . Used . | . . . Hacking Detections 7 | . 7 . Full Trace Events 1 | . 1 . Feedback Events . | . . . Feedback Blocked . | . . . Robot Schematics Acquired . | . . . Robots Built . | . . . Authchips . | . . . Time . | . . . Total Robot Build Rating . | . . . Part Schematics Acquired 1 | . 1 . Parts Built . | . . . Authchips . | . . . Time . | . . . Total Part Build Rating . | . . . Part Studies Acquired . | . . . Parts Repaired . | . . . Time . | . . . Parts Recycled . | . . . Recycled Matter . | . . . Retrieved Matter . | . . . Retrieved Components 4 | . 4 . Parts Scanalyzed . | . . . Part Schematics Acquired . | . . . Parts Damaged . | . . . Bothacking | -11 -10 -10 ------------ Run | Yrd Mat Sub Used RIF Installer . | . . . Robots Hacked . | . . . Non-combat . | . . . Combat . | . . . Robot Hacks Applied . | . . . Relay Couplers Released . | . . . Fabnet Peak Effective % . | . . . Robots Rewired . | . . . Allies Hacked . | . . . Hacks Repelled . | . . . Allies | -11 -10 -10 -------- Run | Yrd Mat Sub Total Allies . | . . . Largest Group . | . . . Highest-Rated Group . | . . . Highest-Rated Ally . | . . . Total Orders . | . . . Ally Attacks . | . . . Total Damage . | . . . Kills . | . . . Allies Corrupted . | . . . Allies Melted . | . . . Intel | -11 -10 -10 ------- Run | Yrd Mat Sub Active Infowar (turns) 1891 | . . 1891 Sensors 1891 | . . 1891 Robot Analysis Total 1 | . 1 . Derelict Logs Recovered 2 | . . 2 Drone Launches . | . . . Drone Recoveries . | . . . Exploration | -11 -10 -10 ------------- Run | Yrd Mat Sub Turns Passed 3350 | 36 950 2364 Spaces Moved 2868 | 35 837 1996 Core 1 | 1 . . Treads . | . . . Legs . | . . . Wheels 2867 | 34 837 1996 Hover . | . . . Flight . | . . . Fastest Speed 50 | 50 80 95 Average Speed 97 | 79 88 101 Slowest Speed 125 | 80 95 125 Overloaded Moves . | . . . Propulsion Burnouts . | . . . Robots Hopped . | . . . Potential Cave-ins . | . . . Cave-ins Triggered . | . . . Exploration Rate (%) 56 | 3 98 68 Regions Visited 2 Branch Regions 1 Pre-discovered Areas 1 | . . 1 Known Exits Taken . | . . . Unknown Exits Taken 2 | 1 1 . Scrap Searched 8 | . . 8 Spaces Dug . | . . . Terrain Destroyed 124 | . 120 4 Melee . | . . . Projectile . | . . . AOE 124 | . 120 4 Terrain Rammed . | . . . Walls Destroyed . | . . . Machines Disabled . | . . . Actions | -11 -10 -10 --------- Run | Yrd Mat Sub Total 3218 | 40 963 2215 Wait 74 | . 20 54 Move 2866 | 34 836 1996 Hop . | . . . Pick Up 44 | . 22 22 Fast Attach 20 | 6 5 9 Attach 10 | . 2 8 Detach 2 | . 1 1 Swap 42 | . 14 28 Drop 45 | . 14 31 Fire 114 | . 49 65 Melee . | . . . Ram . | . . . Kick . | . . . Crush . | . . . Escape Stasis . | . . . Rewire . | . . . Trap 1 | . . 1 Miscellaneous . | . . . Route ------- -11/Scrapyard -10/Materials (discovered 5 exits: [*Mat x3] / [*Min] / *Sub) -10/Subcaves (discovered 3 exits: [*Mat x2] / Rec) History --------- Turn | Location | Event 23 | -11/Scrapyard | Discovered new exit (range 16) 37 | -11/Scrapyard | Entered Materials 222 | -10/Materials | Discovered new exit (range 8) 273 | -10/Materials | Discovered new exit (range 10) 314 | -10/Materials | Build established: Mutant 325 | -10/Materials | Central database locked down 511 | -10/Materials | Discovered new exit (range 16) 788 | -10/Materials | Discovered new exit (range 14) 977 | -10/Materials | Discovered new exit (range 8) 987 | -10/Materials | Entered Subcaves 988 | -10/Subcaves | Approached by a straggling Scientist 1021 | -10/Subcaves | Discovered new exit (range 6) 1028 | -10/Subcaves | Learned location of Zion (-7) 1028 | -10/Subcaves | Met a Zionite searching for "candidates" 1049 | -10/Subcaves | Identified exit to Recycling 1190 | -10/Subcaves | Shifting Twisted Machinery released Sub. Power Source 1195 | -10/Subcaves | Shifting Twisted Machinery released Sub. Laser 1274 | -10/Subcaves | Shifting Twisted Machinery released Mak. Thermal Plating 1686 | -10/Subcaves | Build established: Scavenger-Mutant 1718 | -10/Subcaves | Discovered new exit (range 8) 1783 | -10/Subcaves | Core integrity fell below 50% 2239 | -10/Subcaves | Visited 4L-MR0's lab 2252 | -10/Subcaves | Found Cargo Legs 2420 | -10/Subcaves | Ambushed by Subdwellers from Twisted Machinery 2519 | -10/Subcaves | Shifting Twisted Machinery released Mak. Power Source 2537 | -10/Subcaves | Shifting Twisted Machinery released Riot Gun 2772 | -10/Subcaves | Learned Materials stockpile data 2802 | -10/Subcaves | Build established: Mutant 2858 | -10/Subcaves | A swath of the cavern ceiling suddenly collapsed 3347 | -10/Subcaves | Core integrity fell below 20% 3351 | -10/Subcaves | Destroyed by I7-6FB(R) with Subdweller Machine Gun Last Messages --------------- 02832_ Found Slug Cannon. 02832_ Found 69 Matter. 02833_ Dropped Riot Gun. 02835_ Acquired Slug Cannon. 02838_ Acquired 10 matter. 02839_ Dropped Sub. Monowheel. 02839_ Dropped Ion Engine. 02841_ Acquired Riot Gun. A swath of the cavern ceiling suddenly collapses. 03159_ Sub. Monowheel shoots sparks and powers down. 03160_ Dropped Broken Sub. Monowheel. 03181_ Acquired 10 matter. 03182_ Dropped Ion Engine. 03183_ Acquired Mak. Power Source. 03315_ I7-6FB(R): "LEAVESUB!" 03339_ I7-6FB(R) knocked back. 03340_ Battle Cannon destroyed. 03346_ Destroyed Scrap Shield. Map ----- +----------------------------------------------------+ | #???????????## ## ### ##?????????????###### | | ??#####????## ### #????????????##[|"## | | ## "#???## ##?# #????????????#" # #" | | ##### #?# ##????????????#%[# | | ## ## ####?#######?????????????#^"# #" | | ## ##????????????????????????#%#### | | ### ## ####?????????????????????????###?# | | ### ## ##???????????????????????????????# | | #" ## #????????????????????????????????# | | """ ### #????????????????????????????????#### | | """"##?# #???????????????????????????????????# | | "####?## #???????????????????????????????????? | | ##????# ##???????????????????????????????????? | | ??##### ##????????????????????????????????????? | | ##""## ###?????????????????????????????????????? | | #"""## ###?????????????????????????????????????? | | #?# #!#####?????????????????????????????????? | | ##?## *% ##????????????????????????????????# | | ##?## [# # #????????????????????????????????# | | ### ### #????????????????????????????????# | | #?## ##########????????????????????????# | | #### ### ##???????????????????????# | | ##??????????????????????# | | ## ##?????????????????????? | | #### # # #?????????????????????? | | #### ######## @ #?????????????????????? | | ## #?? #### #?????????????????????? | | ### ## ## ##?????????????????????? | | ### ### #??????????????????????? | | ##!& #### #??????????????????????? | | ### ! ##??## % ##??????????????????????? | | ## ##?#% ######???# ##???????????????????????? | | ?###?##*&##???????##%R####???????????????????????? | | ?????# & ##???????# #???????????????????????? | | ?????## #???????# ##??????????????????????? | | ??????## ######### |##?????????????????????? | | ???????## # ""## ^ ""###???????????????????? | | ??###### ! ##""[ """ ####????????????????? | | ?## ### = ##"" " ^ "###"###??????????????? | | ?# &&= ! ## = "# ##?????????????? | | ?# & [ " ###" ## "" #?##??????????? | | ?## #!& &"""##?##### [ " #### #??????????? | | ??###### *""##"### #"""[["" # #### #??????????? | | ???????## """#""""" ^" ## #"""## #???????????? | | ????????##" ###""""" "" """"" #???????????? | | ?????????####?"""# # # #???????????? | | ?????????????? ?###### ^## ##???????????? | | ?????????????##?????## ## #????????????? | | ????????????????????# ^ ### #????????????? | | ????????????????????# ##?## #????????????? | +----------------------------------------------------+ Best States ------------- Heat Dissipation 25 Energy Generation 15 Energy Capacity 250 Matter Stores 300 Matter Capacity 300 Sight Range 16 Robot Scan Range 14 Terrain Scan Density 10 Armor Coverage 150 Evasion (%) 44 Item Schematics ----------------- Hcp. Storage Unit | -10/Materials | Hacked Robot Schematics ------------------ None Fabricated ------------ Nothing Repaired ---------- Nothing Studied --------- None Alien Tech Used ----------------- None Achievements -------------- None Challenges ------------ None Game ------ Seed ConstructWeldingStatue Manual? 0 Play Time 00:26:28 Cumulative 296.2 hours Start 2025.12.16 @ 14:25:48 End 2025.12.16 @ 14:51:54 Sessions 1 Manual Loads 0 Difficulty Rogue Special Mode None Game No. 106 Rogue 106 Adventurer 0 Explorer 0 Win Type - Total 2 Types 1/0/0/0/0/0/0/0/0/1 Lore% 73 Gallery% 68 Achievement% 57 Wizard Run 0 Options --------- Layout 1 ASCII 0 Keyboard 0 Movement Mouse Keybinds 0 Fullscreen 2 Font 32/SmallcapsGlow Map View 50x35 Zoom Use 0% Tactical HUD 1 Map Filters NONE Filters NONE Steam 1 RUN: 86803ce5-4c6f-433d-961b-2792645096f6